bitfinex/quotes_BTCUSD_20260308
["timestamp","ask_amount","ask_price","bid_price","bid_amount"]
[1772988166954,0.00823223,66981.0,66967.0,0.23757462]
[1772988167164,0.00823223,66981.0,66967.0,0.23739542]
[1772988168396,0.00671223,66979.0,66967.0,0.23075732]
[1772988168601,0.00671223,66979.0,66967.0,0.07466352]
[1772988170282,0.07465137,66978.0,66967.0,0.07466352]
[1772988170459,0.07617137,66978.0,66967.0,0.07466352]
[1772988170862,0.07617137,66978.0,66967.0,0.07486352]
[1772988171804,0.07617137,66978.0,66968.0,0.1560938]
[1772988171949,0.00152,66977.0,66968.0,0.1627319]
[1772988172519,0.0746536,66976.0,66969.0,0.07466141]
[1772988174354,0.07464914,66980.0,66969.0,0.07466141]
[1772988174555,0.07464914,66980.0,66970.0,0.1560938]
[1772988174755,0.07464216,66987.0,66974.0,0.1560938]
[1772988174756,0.07616601,66983.0,66974.0,0.1560938]
[1772988174961,0.07616601,66983.0,66975.0,0.1627319]
[1772988175192,0.07616601,66983.0,66975.0,0.1560938]
[1772988175597,0.07616601,66983.0,66971.0,0.0081581]
[1772988175598,0.07616601,66983.0,66971.0,0.1642519]
[1772988175784,0.00671223,66982.0,66971.0,0.00152]
[1772988176013,0.00671223,66982.0,66969.0,0.07466141]
[1772988176491,0.00671223,66980.0,66968.0,0.07466194]
[1772988178750,0.08136249,66979.0,66968.0,0.07466194]
[1772988179070,0.00671223,66978.0,66968.0,0.07466194]
[1772988180291,0.00671223,66978.0,66967.0,0.00172]
[1772988180469,0.07465249,66977.0,66967.0,0.0002]
[1772988180710,0.00671223,66975.0,66960.0,0.0002]
[1772988180911,0.14794456,66973.0,66960.0,0.00016]
[1772988181044,0.00671223,66972.0,66960.0,0.00016]
[1772988181936,0.00671223,66972.0,66960.0,0.00055759]
[1772988182360,0.00671223,66971.0,66960.0,0.00055759]
[1772988182562,0.14794456,66972.0,66960.0,0.00055759]
[1772988182563,0.00671223,66967.0,66960.0,0.00055759]
[1772988184808,0.07466475,66966.0,66960.0,0.00055759]
[1772988185205,0.00603133,66965.0,66953.0,0.0002]
[1772988185409,0.00603133,66963.0,66953.0,0.0002]
[1772988186561,0.00603133,66963.0,66950.0,0.0002]
[1772988186913,0.00603133,66961.0,66950.0,0.0002]
[1772988187747,0.07466921,66962.0,66950.0,0.0002]
[1772988187748,0.07466921,66962.0,66951.0,0.14727705]
[1772988188107,0.07466921,66963.0,66956.0,0.00603854]
[1772988188270,0.07466921,66962.0,66958.0,0.14727705]
[1772988188476,0.07466921,66962.0,66958.0,0.15331559]
[1772988188646,0.07466921,66962.0,66958.0,0.00603854]
[1772988189649,0.00156744,66965.0,66958.0,0.00603854]
[1772988190977,0.07466163,66969.0,66958.0,0.00603854]
[1772988191310,0.00152,66968.0,66958.0,0.00615787]
[1772988191480,0.07466163,66969.0,66958.0,0.00615787]
[1772988191668,0.00152,66968.0,66958.0,0.00615787]
[1772988192011,0.00152,66967.0,66958.0,0.15343492]
[1772988192987,0.07466163,66969.0,66958.0,0.14739638]
[1772988193188,0.00152,66968.0,66959.0,0.15388819]
[1772988194208,0.00152,66967.0,66959.0,0.15388819]
[1772988194758,0.00152,66967.0,66959.0,0.00661114]
[1772988194969,0.00152,66967.0,66958.0,0.00011933]
[1772988195173,0.00803397,66967.0,66958.0,0.00011933]
[1772988196313,0.07466475,66966.0,66958.0,0.00011933]
[1772988197220,0.07466475,66966.0,66958.0,0.00031933]
[1772988197817,0.07466475,66966.0,66958.0,0.10031933]
[1772988198077,0.00152,66969.0,66961.0,0.00661114]
[1772988198276,0.00152,66971.0,66964.0,0.00661114]
[1772988198433,0.00152,66971.0,66960.0,0.07467068]
[1772988198840,0.00152,66971.0,66960.0,0.22855887]
[1772988199044,0.00152,66971.0,66960.0,0.08128182]
[1772988199394,0.00152,66971.0,66959.0,0.07467144]
[1772988199595,0.07465903,66972.0,66959.0,0.22855963]
[1772988201311,0.00651397,66971.0,66958.0,0.10031933]
[1772988201507,0.00651397,66971.0,66958.0,0.17499281]
[1772988202313,0.00651397,66971.0,66958.0,0.10031933]
[1772988202836,0.00651397,66971.0,66958.0,0.1749926]
[1772988203121,0.07466029,66970.0,66958.0,0.1749926]
[1772988203696,0.08117426,66970.0,66958.0,0.1749926]
[1772988204480,0.07466029,66970.0,66952.0,0.07467933]
[1772988204637,0.00651397,66969.0,66952.0,0.07472677]
[1772988205244,0.07466252,66968.0,66952.0,0.07472677]
[1772988205442,0.00803397,66967.0,66958.0,0.0002]
[1772988206721,0.00152,66967.0,66958.0,0.0002]
[1772988207069,0.00152,66966.0,66958.0,0.0002]
[1772988207487,0.00152,66965.0,66958.0,0.0002]
[1772988209178,0.07464668,66983.0,66958.0,0.0002]
[1772988209382,0.07617695,66973.0,66958.0,0.0002]
[1772988209723,0.00651397,66972.0,66958.0,0.0002]
[1772988209984,0.00651397,66971.0,66958.0,0.0002]
[1772988212422,0.00651397,66969.0,66958.0,0.0002]
[1772988214944,0.07466252,66968.0,66958.0,0.0002]
[1772988215126,0.00152,66967.0,66958.0,0.0002]
[1772988217174,0.07466475,66966.0,66958.0,0.0002]
[1772988224814,0.08101451,66966.0,66958.0,0.0002]
[1772988225032,0.00634976,66965.0,66955.0,0.00015]
[1772988226857,0.07466698,66964.0,66955.0,0.00015]
[1772988227071,0.00634976,66963.0,66955.0,0.00015]
[1772988227955,0.00634976,66963.0,66955.0,0.0003297]
[1772988228150,0.00634976,66963.0,66955.0,0.0005297]
[1772988228712,0.07466698,66964.0,66955.0,0.0005297]
[1772988228928,0.00152,66965.0,66958.0,0.14754648]
[1772988230028,0.00152,66966.0,66958.0,0.14754648]
[1772988230922,0.07466142,66969.0,66958.0,0.14754648]
[1772988231122,0.07466364,66967.0,66959.0,0.22221904]
[1772988231332,0.07618364,66968.0,66960.0,0.14754648]
[1772988231758,0.07466364,66967.0,66960.0,0.14754648]
[1772988232983,0.16473264,66967.0,66960.0,0.14754648]
[1772988233481,0.16473264,66967.0,66960.0,0.2222179]
[1772988233646,0.16473264,66967.0,66960.0,0.07467142]
[1772988234249,0.16473264,66967.0,66960.0,0.2222179]
[1772988235312,0.16473264,66967.0,66960.0,0.14754648]
[1772988235674,0.16473264,66967.0,66959.0,0.07467256]
[1772988237243,0.090069,66967.0,66959.0,0.07467256]
[1772988237449,0.090069,66967.0,66960.0,0.14754648]
[1772988237746,0.16473305,66967.0,66960.0,0.14754648]
[1772988240355,0.07618254,66968.0,66960.0,0.14754648]
[1772988240356,0.07466254,66968.0,66961.0,0.07467033]
[1772988240909,0.08591475,66973.0,66961.0,0.07467033]
[1772988241120,0.00015,66989.0,66966.0,0.14754648]
[1772988241121,0.07465464,66976.0,66966.0,0.14754648]
[1772988241296,0.07465464,66976.0,66966.0,0.1517181]
[1772988242579,0.07487181,66978.0,66967.0,0.22805472]
[1772988242780,0.00022001,66976.0,66968.0,0.14816878]
[1772988243023,0.07487181,66978.0,66968.0,0.14816878]
[1772988243024,0.07616871,66981.0,66968.0,0.14968878]
[1772988243239,0.00022001,66983.0,66972.0,0.14816878]
[1772988243440,0.00022001,66983.0,66973.0,0.15441337]
[1772988243811,0.00022001,66983.0,66974.0,0.00152]
[1772988244015,0.07464023,66988.0,66976.0,0.00620388]
[1772988244348,0.07464023,66988.0,66977.0,0.15437266]
[1772988244716,0.07503787,66988.0,66978.0,0.22902403]
[1772988245343,0.07463911,66989.0,66980.0,0.00669066]
[1772988245543,0.07464023,66990.0,66981.0,0.16844252]
[1772988245793,0.07463911,66989.0,66982.0,0.00669066]
[1772988246809,0.07464023,66990.0,66982.0,0.08133757]
[1772988247377,0.07481681,66991.0,66982.0,0.08133757]
[1772988247378,0.0001777,66991.0,66982.0,0.08133757]
[1772988248090,0.0001777,66991.0,66983.0,0.00678113]
[1772988249048,0.07461537,67011.0,66983.0,0.00678113]
[1772988249049,0.00152,66995.0,66985.0,0.00752967]
[1772988249575,0.00022001,66991.0,66985.0,0.00752967]
[1772988250566,0.00579001,66998.0,66985.0,0.00752967]
[1772988250776,0.00728195,66997.0,66984.0,0.07464469]
[1772988251149,0.07463132,66996.0,66985.0,0.00152]
[1772988251321,0.00728195,66995.0,66985.0,0.00152]
[1772988252153,0.07463132,66996.0,66983.0,0.07464469]
[1772988252419,0.77588202,66986.0,66984.0,0.00152]
[1772988252643,0.72065216,66986.0,66984.0,0.00152]
[1772988253177,0.69075245,66986.0,66985.0,0.07464357]
[1772988253393,0.65763318,66986.0,66985.0,0.07464357]
[1772988254306,0.65763318,66986.0,66984.0,0.00152]
[1772988254524,0.65763318,66986.0,66978.0,0.07617137]
[1772988254742,0.65763318,66986.0,66979.0,0.00152]
[1772988255200,0.65763318,66986.0,66980.0,0.07616846]
[1772988255813,0.65763318,66986.0,66980.0,0.07464846]
[1772988256352,0.65763318,66986.0,66980.0,0.07616846]
[1772988256468,0.65763318,66986.0,66980.0,0.07464846]
[1772988256855,0.21547059,66986.0,66980.0,0.07616846]
[1772988256987,0.00022001,66989.0,66980.0,0.07616846]
[1772988257320,0.00022001,66989.0,66982.0,0.07464692]
[1772988258037,0.0746359,66992.0,66982.0,0.07677468]
[1772988259068,0.07463466,66993.0,66982.0,0.07677468]
[1772988260232,0.07463366,66994.0,66982.0,0.07677468]
[1772988262073,0.00022001,66996.0,66982.0,0.07677468]
[1772988262274,0.00579001,66998.0,66985.0,0.16175186]
[1772988262476,0.00579001,66998.0,66987.0,0.16175186]
[1772988264152,0.00579001,66998.0,66987.0,0.16275186]
[1772988264352,0.00579001,66998.0,66988.0,0.07464023]
[1772988267034,0.0001787,67000.0,66988.0,0.07464023]
[1772988267249,0.00022001,67003.0,66989.0,0.00149278]
[1772988267458,0.00022001,67003.0,66990.0,0.16175186]
[1772988267657,0.00022001,67003.0,66992.0,0.16175186]
[1772988267935,0.00022001,67003.0,66993.0,0.00301268]
[1772988268787,0.00022001,67003.0,66994.0,0.07463354]
[1772988268924,0.00022001,67003.0,66995.0,0.00149263]
[1772988270779,0.00022001,67003.0,66996.0,0.07463132]
[1772988272174,0.00985126,67002.0,66996.0,0.07463132]
[1772988272878,0.00985126,67002.0,66995.0,0.07463132]
[1772988276555,0.00022001,67003.0,66995.0,0.07463132]
[1772988278087,0.07484425,67003.0,66995.0,0.07463132]
[1772988278293,0.00022001,67003.0,66995.0,0.07463132]
[1772988279759,0.00022001,67003.0,66995.0,0.07615132]
[1772988279885,0.08442425,67003.0,66995.0,0.07615132]
[1772988280088,0.00980059,67003.0,66995.0,0.07615132]
[1772988281304,0.07484359,67003.0,66993.0,0.0014927]
[1772988281517,0.0095117,66999.0,66992.0,0.07463534]
[1772988281711,0.0095117,66998.0,66992.0,0.07463534]
[1772988282218,0.00174001,67003.0,66992.0,0.07463534]
[1772988282778,0.07636382,67003.0,66992.0,0.07463534]
[1772988282983,0.07484382,67003.0,66992.0,0.07463534]
[1772988283381,0.08428944,67003.0,66992.0,0.07463534]
[1772988283781,0.1679693,67000.0,66992.0,0.07463534]
[1772988283979,0.07484382,67003.0,66991.0,0.07615659]
[1772988283980,0.00944562,66997.0,66991.0,0.00152]
[1772988284357,0.00944562,66997.0,66992.0,0.07463577]
[1772988286030,0.00937996,66996.0,66990.0,0.00152]
[1772988286194,0.00937996,66996.0,66987.0,0.07463911]
[1772988286195,0.00937996,66996.0,66988.0,0.07464023]
[1772988286392,0.00937996,66996.0,66989.0,0.00152]
[1772988286730,0.08400656,67001.0,66989.0,0.00152]
[1772988287028,0.00937996,67000.0,66989.0,0.00152]
[1772988287257,0.00937996,67000.0,66992.0,0.0002]
[1772988288428,0.0746266,67001.0,66992.0,0.0002]
[1772988288429,0.00971465,66998.0,66992.0,0.0002]
[1772988290461,0.01002369,66996.0,66986.0,0.07464246]
[1772988290688,0.0746302,66997.0,66987.0,0.00152]
[1772988290689,0.01002369,66994.0,66987.0,0.00152]
[1772988291029,0.01002369,66994.0,66986.0,0.07464246]
[1772988291233,0.01002369,66994.0,66987.0,0.00152]
[1772988292764,0.08465799,66994.0,66987.0,0.00152]
[1772988293180,0.07463251,66995.0,66986.0,0.07464246]
[1772988293527,0.0845879,66995.0,66986.0,0.07616246]
[1772988294072,0.0845879,66995.0,66987.0,0.00152]
[1772988294475,0.0845879,66995.0,66986.0,0.07464246]
[1772988294676,0.0845879,66995.0,66987.0,0.00152]
[1772988295479,0.0845879,66995.0,66986.0,0.07464246]
[1772988295679,0.0845879,66995.0,66987.0,0.00152]
[1772988296117,0.00982312,66994.0,66987.0,0.00152]
[1772988296502,0.00982312,66994.0,66986.0,0.07464246]
[1772988296831,0.00982312,66994.0,66987.0,0.00152]
[1772988297035,0.07463466,66993.0,66985.0,0.07506316]
[1772988297204,0.00982312,66992.0,66987.0,0.0002]
[1772988297617,0.00982312,66992.0,66987.0,0.00172]
[1772988298187,0.00982312,66992.0,66987.0,0.0002]
[1772988298626,0.00982312,66992.0,66986.0,0.00152]
[1772988298984,0.00982312,66992.0,66985.0,0.0019407]
[1772988299188,0.00975609,66990.0,66985.0,0.0019407]
[1772988299806,0.00975609,66990.0,66985.0,0.0004207]
[1772988300028,0.00975609,66990.0,66985.0,0.0019407]
[1772988300459,0.00975609,66990.0,66678.0,1.6071]
[1772988300460,0.03234816,66989.0,66951.0,0.0003541]
[1772988300677,0.03234816,66989.0,66903.0,0.0011]
[1772988300678,0.03234816,66989.0,66917.0,0.0058164]
[1772988300679,0.5237645,66929.0,66917.0,0.0058164]
[1772988300880,0.495451,66961.0,66921.0,0.34926877]
[1772988300881,0.00896874,66926.0,66921.0,0.34926877]
[1772988301119,0.07470963,66926.0,66921.0,0.34926877]
[1772988301295,0.00896874,66925.0,66921.0,0.34926877]
[1772988301504,0.00896874,66923.0,66921.0,0.09394275]
[1772988301672,0.00896874,66923.0,66911.0,0.17518572]
[1772988301673,0.00896874,66921.0,66911.0,0.17518572]
[1772988301895,0.1778196,66929.0,66913.0,0.15770278]
[1772988302287,0.523765,66927.0,66918.0,0.00890941]
[1772988302468,0.11965669,66927.0,66920.0,0.15770278]
[1772988302676,0.00896874,66941.0,66922.0,0.15401706]
[1772988302872,0.00896874,66939.0,66923.0,0.18780535]
[1772988303242,0.07469598,66938.0,66924.0,0.25360755]
[1772988303453,0.00152,66937.0,66924.0,0.25360755]
[1772988303861,0.00152,66936.0,66924.0,0.25360755]
[1772988304283,0.07469598,66938.0,66924.0,0.25360755]
[1772988304586,0.00152,66935.0,66924.0,0.25360755]
[1772988304805,0.08425387,66938.0,66924.0,0.25360755]
[1772988304806,0.07469598,66938.0,66924.0,0.25360755]
[1772988304990,0.00152,66934.0,66924.0,0.25360755]
[1772988305758,0.07469821,66936.0,66924.0,0.25360755]
[1772988305978,0.00152,66934.0,66924.0,0.25380755]
[1772988306585,0.07469821,66936.0,66924.0,0.25380755]
[1772988306807,0.00152,66935.0,66924.0,0.25380755]
[1772988307003,0.01823724,66935.0,66924.0,0.07491161]
[1772988307203,0.01671724,66935.0,66924.0,0.0002]
[1772988307549,0.00152,66934.0,66924.0,0.0002]
[1772988307755,0.01671724,66935.0,66924.0,0.0002]
[1772988307865,0.00152,66934.0,66924.0,0.0002]
[1772988308509,0.07622075,66934.0,66924.0,0.0002]
[1772988308708,0.09359581,66934.0,66924.0,0.0002]
[1772988309397,0.01737506,66933.0,66924.0,0.0002]
[1772988309985,0.01889506,66933.0,66924.0,0.0002]
[1772988310395,0.07470075,66934.0,66911.0,0.0756031]
[1772988310396,0.19092763,66930.0,66911.0,0.0756031]
[1772988310599,0.01737506,66927.0,66911.0,0.0756031]
[1772988310796,0.01737506,66927.0,66911.0,0.27207118]
[1772988311608,0.01737506,66927.0,66911.0,0.0756031]
[1772988311912,0.26563477,66928.0,66911.0,0.0756031]
[1772988311913,0.01737506,66920.0,66911.0,0.00087799]
[1772988312105,0.01737506,66918.0,66911.0,0.00087799]
[1772988312959,0.07469598,66938.0,66911.0,0.07560366]
[1772988313161,0.04963135,66930.0,66913.0,0.19646808]
[1772988313351,0.01874506,66929.0,66913.0,0.19646808]
[1772988313483,0.01874506,66929.0,66912.0,0.00152]
[1772988313688,0.01737506,66928.0,66912.0,0.00152]
[1772988314140,0.01737506,66928.0,66912.0,0.01905134]
[1772988314342,0.01737506,66928.0,66912.0,0.00152]
[1772988314967,0.01737506,66928.0,66913.0,0.07472389]
[1772988314968,0.07470826,66927.0,66913.0,0.07472389]
[1772988315176,0.09208332,66927.0,66913.0,0.07472389]
[1772988315376,0.07470826,66927.0,66913.0,0.07472389]
[1772988315600,0.01737506,66926.0,66913.0,0.07472389]
[1772988316336,0.01737506,66926.0,66912.0,0.07624457]
[1772988316576,0.01737506,66926.0,66911.0,0.07580324]
[1772988316890,0.01737506,66926.0,66911.0,0.07732324]
[1772988317523,0.07471049,66925.0,66911.0,0.07732324]
[1772988318803,0.01737506,66924.0,66911.0,0.00107799]
[1772988318992,0.00152,66923.0,66911.0,0.00107799]
[1772988319195,0.01737506,66922.0,66911.0,0.00107799]
[1772988319401,0.01737506,66921.0,66911.0,0.00107799]
[1772988320546,0.01737506,66919.0,66910.0,0.0002]
[1772988320780,0.01777221,66919.0,66910.0,0.0002]
[1772988321561,0.01737506,66917.0,66910.0,0.0002]
[1772988321762,0.01889506,66917.0,66910.0,0.0002]
[1772988322713,0.01889506,66917.0,66905.0,0.07473232]
[1772988322868,0.01737506,66915.0,66905.0,0.07473232]
[1772988323082,0.14736918,66914.0,66905.0,0.07473232]
[1772988323274,0.14736918,66913.0,66905.0,0.07473232]
[1772988323469,0.14736918,66912.0,66905.0,0.04000893]
[1772988323731,0.14736918,66911.0,66905.0,0.04000893]
[1772988323917,0.01737506,66915.0,66905.0,0.04000893]
[1772988324132,0.14747404,66914.0,66905.0,0.04000893]
[1772988324355,0.14747404,66913.0,66905.0,0.04000893]
[1772988324577,0.01737506,66915.0,66905.0,0.04000893]
[1772988324578,0.14747404,66912.0,66905.0,0.04000893]
[1772988324780,0.14747404,66911.0,66905.0,0.04000893]
[1772988324937,0.29434825,66934.0,66905.0,0.04000893]
[1772988325138,0.07470415,66931.0,66908.0,0.01753134]
[1772988325350,0.09207921,66931.0,66911.0,0.19646808]
[1772988325678,0.09207921,66931.0,66914.0,0.01753134]
[1772988325887,0.09207921,66931.0,66916.0,0.01753134]
[1772988326106,0.01737506,66929.0,66917.0,0.00152]
[1772988327061,0.01737506,66929.0,66918.0,0.07471831]
[1772988327062,0.07470714,66928.0,66918.0,0.07471831]
[1772988327599,0.01737506,66927.0,66918.0,0.0739257]
[1772988328750,0.01737506,66927.0,66906.0,0.07473171]
[1772988328978,0.01737506,66923.0,66909.0,0.00152]
[1772988329187,0.01737506,66920.0,66909.0,0.00152]
[1772988329404,0.00152,66919.0,66909.0,0.01753134]
[1772988329623,0.00152,66919.0,66908.0,0.0734604]
[1772988330000,0.00152,66919.0,66908.0,0.09099174]
[1772988331120,0.01737506,66917.0,66908.0,0.0734604]
[1772988331339,0.01737506,66917.0,66892.0,0.01753134]
[1772988331523,0.01737506,66913.0,66893.0,0.00152]
[1772988331725,0.01737506,66913.0,66892.0,0.01757878]
[1772988331726,0.19092763,66910.0,66894.0,0.00152]
[1772988331929,0.01737506,66907.0,66892.0,4.744e-05]
[1772988332135,0.07471831,66918.0,66880.0,0.0090069]
[1772988332136,0.36986766,66893.0,66880.0,0.0090069]
[1772988332329,0.01737506,66891.0,66880.0,0.00912616]
[1772988332685,0.01737506,66887.0,66872.0,0.07499919]
[1772988332863,0.18455789,66886.0,66872.0,0.00034942]
[1772988333071,0.07475852,66882.0,66872.0,0.00034942]
[1772988333240,0.07475852,66882.0,66872.0,0.07511889]
[1772988333458,0.0747507,66889.0,66874.0,0.19465901]
[1772988333660,0.00152,66884.0,66874.0,0.01753134]
[1772988333963,0.00152,66884.0,66872.0,0.07511889]
[1772988333964,0.18455789,66883.0,66872.0,0.00034942]
[1772988334142,0.18455789,66882.0,66872.0,0.00034942]
[1772988334327,0.00152,66886.0,66872.0,0.09265015]
[1772988334539,0.0747507,66889.0,66872.0,0.09265015]
[1772988334540,0.00152,66885.0,66873.0,0.01753134]
[1772988334758,0.00152,66885.0,66874.0,0.01753134]
[1772988335165,0.07475629,66884.0,66873.0,0.07476747]
[1772988335580,0.07475629,66884.0,66871.0,0.0002178]
[1772988335581,0.01737506,66882.0,66871.0,0.0002178]
[1772988335791,0.01737506,66880.0,66871.0,0.00033724]
[1772988336320,0.18455789,66876.0,66862.0,0.07526049]
[1772988336546,0.18455789,66873.0,66862.0,0.07526049]
[1772988336726,0.01889506,66872.0,66862.0,0.07526049]
[1772988336866,0.07475629,66884.0,66862.0,0.07526049]
[1772988337073,0.01737506,66882.0,66864.0,0.01753134]
[1772988337283,0.01737506,66879.0,66865.0,0.07477753]
[1772988337482,0.01737506,66877.0,66865.0,0.07477753]
[1772988337790,0.01889506,66876.0,66865.0,0.07477753]
[1772988338394,0.01737506,66874.0,66865.0,0.07477753]
[1772988338597,0.07476076,66881.0,66865.0,0.07477753]
[1772988338598,0.08033009,66890.0,66867.0,0.01597073]
[1772988338877,0.08033009,66890.0,66866.0,0.00152]
[1772988338878,0.0804495,66890.0,66870.0,0.19465901]
[1772988339084,0.00152,66889.0,66873.0,0.01597073]
[1772988339296,0.07475182,66888.0,66876.0,0.07476523]
[1772988339497,0.07475182,66888.0,66876.0,0.10086766]
[1772988339702,0.00152,66887.0,66876.0,0.02610243]
[1772988339969,0.18607789,66887.0,66875.0,0.076286]
[1772988340192,0.00152,66887.0,66875.0,0.076286]
[1772988340375,0.00152,66887.0,66875.0,0.10238843]
[1772988340588,0.07475182,66888.0,66875.0,0.10238843]
[1772988340816,0.00152,66887.0,66876.0,0.02610243]
[1772988341517,0.07475405,66886.0,66875.0,0.00152]
[1772988341803,0.07475405,66886.0,66876.0,0.02610243]
[1772988342005,0.07475182,66888.0,66876.0,0.02610243]
[1772988342205,0.00152,66887.0,66876.0,0.02610243]
[1772988342570,0.00569909,66890.0,66876.0,0.02610243]
[1772988342770,0.17875697,66905.0,66879.0,0.19465901]
[1772988342771,0.07473373,66905.0,66879.0,0.19465901]
[1772988342967,0.00152,66904.0,66883.0,0.19465901]
[1772988343289,0.06,66899.0,66887.0,0.02610243]
[1772988343639,0.13474032,66899.0,66886.0,0.07475392]
[1772988343841,0.18607789,66898.0,66886.0,0.07475392]
[1772988344617,0.00152,66898.0,66886.0,0.10085635]
[1772988344772,0.00152,66898.0,66886.0,0.07475392]
[1772988345117,0.00152,66898.0,66887.0,0.02610243]
[1772988345764,0.000309,66914.0,66888.0,0.07475182]
[1772988345993,0.18455789,66912.0,66893.0,0.02610243]
[1772988346205,0.18455789,66912.0,66890.0,0.00152]
[1772988347710,0.18455789,66912.0,66891.0,0.02610243]
[1772988348305,0.18455789,66910.0,66892.0,0.07474735]
[1772988348708,0.07472612,66911.0,66893.0,0.02610243]
[1772988348910,0.00152,66910.0,66893.0,0.02610243]
[1772988349526,0.00152,66909.0,66893.0,0.02610243]
[1772988349743,0.18455789,66908.0,66893.0,0.02610243]
[1772988350411,0.01154601,66918.0,66895.0,0.02610243]
[1772988350699,0.08029992,66917.0,66900.0,0.19465901]
[1772988350921,0.08029992,66917.0,66901.0,0.02762243]
[1772988351119,0.00152,66916.0,66901.0,0.02762243]
[1772988351947,0.00163942,66916.0,66901.0,0.02762243]
[1772988352578,0.07472166,66915.0,66902.0,0.07473618]
[1772988352753,0.07472166,66915.0,66903.0,0.01763197]
[1772988353572,0.07624166,66915.0,66903.0,0.01763197]
[1772988354403,0.07624166,66915.0,66902.0,0.07473618]
[1772988354603,0.07624166,66915.0,66902.0,0.09236815]
[1772988355178,0.07624166,66915.0,66903.0,0.01763197]
[1772988355757,0.07472166,66915.0,66903.0,0.01763197]
[1772988356095,0.00152,66914.0,66903.0,0.01763197]
[1772988356630,0.0762437,66914.0,66904.0,0.09236591]
[1772988358393,0.18455789,66913.0,66903.0,0.07473407]
[1772988358664,0.07472501,66912.0,66903.0,0.07473407]
[1772988359971,0.07457501,66912.0,66903.0,0.07473407]
[1772988360162,0.07472393,66913.0,66903.0,0.07473407]
[1772988360819,0.07472393,66913.0,66902.0,0.09236703]
[1772988360820,0.25928182,66913.0,66901.0,0.00152]
[1772988361079,0.25928182,66913.0,66896.0,0.07474205]
[1772988361080,0.18455789,66912.0,66896.0,0.07474205]
[1772988362373,0.00152,66911.0,66897.0,0.01876572]
[1772988362601,0.00152,66911.0,66893.0,0.07474288]
[1772988362602,0.18455789,66910.0,66889.0,0.07475063]
[1772988362822,0.19352775,66908.0,66889.0,0.07475063]
[1772988363023,0.19352775,66908.0,66887.0,0.01876572]
[1772988363228,0.19352775,66908.0,66888.0,0.01876572]
[1772988363603,0.19504775,66907.0,66888.0,0.01876572]
[1772988364005,0.00152,66906.0,66888.0,0.01876572]
[1772988364769,0.00152,66905.0,66892.0,0.20481345]
[1772988365089,0.00152,66905.0,66894.0,0.01876572]
[1772988365287,0.07473283,66906.0,66894.0,0.01876572]
[1772988365495,0.00152,66905.0,66894.0,0.01876572]
[1772988366094,0.00152,66905.0,66894.0,0.20481345]
[1772988366302,0.09472404,66913.0,66895.0,0.01876572]
[1772988366303,0.07472791,66910.0,66895.0,0.01876572]
[1772988366504,0.00152,66909.0,66895.0,0.01876572]
[1772988366848,0.07472947,66908.0,66896.0,0.07474288]
[1772988367049,0.07472947,66908.0,66897.0,0.01876572]
[1772988367204,0.00152,66907.0,66897.0,0.01876572]
[1772988367431,0.00152,66907.0,66896.0,0.07474288]
[1772988367611,0.00152,66907.0,66896.0,0.0935086]
[1772988370247,0.07473171,66906.0,66896.0,0.0935086]
[1772988370844,0.07473171,66906.0,66897.0,0.01876572]
[1772988371264,0.07473071,66907.0,66897.0,0.01876572]
[1772988371476,0.07625071,66907.0,66897.0,0.01876572]
[1772988372056,0.07473071,66907.0,66897.0,0.01876572]
[1772988372223,0.00022001,66912.0,66900.0,0.01876572]
[1772988372437,0.00152,66911.0,66899.0,0.07473953]
[1772988372659,0.00022001,66907.0,66899.0,0.07473953]
[1772988374081,0.00022001,66907.0,66900.0,0.01876572]
[1772988374286,0.00022001,66907.0,66901.0,0.07473729]
[1772988376910,0.07495109,66907.0,66894.0,0.07474511]
[1772988377112,0.07495109,66907.0,66895.0,0.00152]
[1772988377893,0.07495109,66907.0,66894.0,0.09112604]
[1772988378081,0.00948966,66906.0,66893.0,0.07494602]
[1772988378860,0.07473283,66905.0,66893.0,0.0002]
[1772988379455,0.07458283,66905.0,66893.0,0.01658093]
[1772988379978,0.00152,66904.0,66893.0,0.01658093]
[1772988380312,0.00152,66905.0,66896.0,0.20481345]
[1772988380466,0.00152,66905.0,66893.0,0.0002]
[1772988380865,0.07473394,66904.0,66894.0,0.07474511]
[1772988381105,0.07473394,66904.0,66895.0,0.01638093]
[1772988384247,0.07473394,66904.0,66896.0,0.07474288]
[1772988384446,0.07473394,66904.0,66895.0,0.09112477]
[1772988385026,0.07473394,66904.0,66895.0,0.07474396]
[1772988385691,0.00889124,66902.0,66891.0,0.07626837]
[1772988386326,0.07473729,66901.0,66891.0,0.07626837]
[1772988387436,0.07473729,66901.0,66891.0,0.0926493]
[1772988388907,0.07473729,66901.0,66893.0,0.0002]
[1772988390335,0.07473953,66899.0,66886.0,0.0002]
[1772988390542,0.20326309,66898.0,66886.0,0.0002]
[1772988391721,0.00846916,66898.0,66886.0,0.0002]
[1772988392381,0.00846916,66898.0,66847.0,0.23117578]
[1772988392382,0.14902313,66890.0,66867.0,0.00152]
[1772988392583,0.19479393,66886.0,66868.0,0.00152]
[1772988392763,0.20301895,66882.0,66866.0,0.00172]
[1772988392980,0.00893262,66880.0,66866.0,0.00172]
[1772988393110,0.00152,66879.0,66866.0,0.00172]
[1772988393517,0.00152,66879.0,66866.0,0.00183909]
[1772988393715,0.00152,66879.0,66866.0,0.07661537]
[1772988393940,0.00152,66878.0,66868.0,0.01638093]
[1772988394116,0.00152,66877.0,66868.0,0.01638093]
[1772988394935,0.07476523,66876.0,66865.0,0.0002]
[1772988395121,0.07476523,66876.0,66865.0,0.01658093]
[1772988396315,0.07476523,66876.0,66872.0,0.0002]
[1772988396566,0.07476523,66876.0,66866.0,0.01638093]
[1772988396881,0.07475517,66885.0,66867.0,0.21047752]
[1772988397083,0.00152,66884.0,66868.0,0.01638093]
[1772988397288,0.01003838,66884.0,66868.0,0.01638093]
[1772988397418,0.00152,66883.0,66868.0,0.01638093]
[1772988397650,0.01003838,66883.0,66868.0,0.01638093]
[1772988397847,0.00851838,66881.0,66865.0,0.09135821]
[1772988398520,0.00851838,66881.0,66865.0,0.0913581]
[1772988398957,0.08311109,66880.0,66865.0,0.0913581]
[1772988399132,0.00835663,66878.0,66865.0,0.07497726]
[1772988399338,0.20301895,66874.0,66854.0,0.01610232]
[1772988399538,0.00835663,66873.0,66855.0,0.01762232]
[1772988399746,0.00835663,66879.0,66857.0,0.21047752]
[1772988400056,0.27777971,66880.0,66860.0,0.01610232]
[1772988400057,0.00987663,66878.0,66860.0,0.01610232]
[1772988400738,0.27777971,66880.0,66855.0,0.00152]
[1772988400739,0.07476076,66880.0,66861.0,0.21047752]
[1772988400940,0.074763,66878.0,66865.0,0.21047752]
[1772988401311,0.00152,66880.0,66870.0,0.01610232]
[1772988401638,0.00152,66879.0,66870.0,0.01610232]
[1772988402700,0.07475748,66883.0,66870.0,0.01610232]
[1772988402899,0.00152,66881.0,66871.0,0.01610232]
[1772988403086,0.07627996,66881.0,66873.0,0.01610232]